bitfinex-derivatives/quotes_ETHF0:USTF0_20250704
["timestamp","ask_amount","ask_price","bid_price","bid_amount"]
[1751592281335,4.70157441,2600.0,2599.2,1.2787]
[1751592281531,3.2078,2599.5,2599.4,2.61211897]
[1751592281736,3.2078,2599.5,2599.4,5.41507001]
[1751592281931,4.32020669,2599.5,2599.4,0.76913]
[1751592282442,4.32020669,2599.5,2599.4,3.04948968]
[1751592282633,3.2078,2599.5,2599.4,14.26248968]
[1751592282833,2.6239,2599.9,2599.8,0.76902]
[1751592283038,3.73630669,2599.9,2599.8,0.76902]
[1751592283344,3.73630669,2599.9,2599.7,5.41507001]
[1751592283640,40.8,2599.8,2599.7,6.18412001]
[1751592283837,40.8,2599.8,2599.7,5.41507001]
[1751592284041,43.30990669,2599.8,2599.7,5.92356725]
[1751592285139,43.30990669,2599.8,2599.7,6.69261725]
[1751592285739,43.30990669,2599.8,2599.7,0.50849724]
[1751592286342,1.11240669,2599.8,2599.7,1.27754724]
[1751592286540,1.11240669,2599.8,2599.7,2.44123537]
[1751592286740,40.8,2600.3,2599.7,4.87998537]
[1751592286941,0.20828605,2600.5,2600.2,5.41507001]
[1751592287244,0.20828605,2600.5,2600.4,0.76885]
[1751592287444,41.00828605,2600.5,2600.4,1.27734724]
[1751592287844,42.88951274,2600.5,2600.4,0.50849724]
[1751592288241,42.12069274,2600.5,2600.4,0.50849724]
[1751592288447,42.88951274,2600.5,2600.4,0.50849724]
[1751592288847,42.88951274,2600.5,2600.4,0.51915854]
[1751592289043,42.12069274,2600.5,2600.1,11.206]
[1751592289245,42.12069274,2600.5,2600.0,8.62287001]
[1751592289246,1.3318,2600.4,2600.0,8.62287001]
[1751592289443,1.3318,2600.4,2600.2,0.76889]
[1751592289646,2.44420669,2600.4,2600.1,11.97492]
[1751592289845,3.21305669,2600.4,2600.1,11.97492]
[1751592290341,0.7689,2600.3,2600.0,8.62287001]
[1751592290547,0.7689,2600.3,2600.1,11.206]
[1751592290746,1.88130669,2600.3,2600.1,11.206]
[1751592290945,1.88130669,2600.3,2600.1,11.97493]
[1751592291141,1.11240669,2600.3,2600.1,11.97493]
[1751592291348,1.11240669,2600.3,2600.1,11.97293]
[1751592291649,1.88128669,2600.3,2600.1,11.97293]
[1751592291944,1.11240669,2600.3,2600.1,11.97293]
[1751592292143,1.11240669,2600.3,2600.1,0.76893]
[1751592292342,1.88128669,2600.3,2600.1,0.76893]
[1751592292948,1.88128669,2600.3,2600.1,11.97293]
[1751592293540,1.11240669,2600.3,2600.2,0.76891]
[1751592293747,3.2078,2600.4,2600.3,0.76888]
[1751592294050,5.08905669,2600.4,2600.2,0.76889]
[1751592294450,5.08905669,2600.4,2600.2,11.97089]
[1751592294749,4.32020669,2600.4,2600.2,11.202]
[1751592295145,5.08907669,2600.4,2600.2,11.9709]
[1751592295551,0.76888,2600.3,2600.2,11.9709]
[1751592295952,0.76888,2600.3,2600.2,11.202]
[1751592295953,0.7689,2600.3,2600.2,11.202]
[1751592296153,0.76892,2600.2,2599.8,1.1646729]
[1751592296354,2.50820669,2600.3,2600.2,0.76891]
[1751592296546,3.97666,2600.4,2600.3,0.76888]
[1751592296744,5.08906669,2600.4,2600.2,0.76889]
[1751592297049,0.76888,2600.3,2600.2,0.76889]
[1751592297254,0.76888,2600.3,2600.1,11.96992]
[1751592297955,3.2078,2600.4,2600.1,11.96992]
[1751592298150,0.76889,2600.3,2600.2,0.76891]
[1751592298350,0.76889,2600.3,2600.2,0.51911505]
[1751592298546,1.88129669,2600.3,2600.2,1.28802505]
[1751592300251,1.88129669,2600.3,2600.2,0.51911505]
[1751592301054,3.23409669,2600.3,2600.2,0.51911505]
[1751592301653,3.23409669,2600.3,2600.2,1.28802505]
[1751592301857,1.88129669,2600.3,2600.2,0.51911505]
[1751592302054,1.88129669,2600.3,2600.2,1.28802505]
[1751592302267,1.11240669,2600.3,2600.2,2.45851819]
[1751592302461,3.2078,2600.4,2600.3,0.76888]
[1751592302661,0.20828605,2600.5,2600.4,0.76885]
[1751592302859,1.67335,2601.0,2600.4,8.30381648]
[1751592303060,1.43295669,2601.0,2600.9,6.18377001]
[1751592303255,0.76863,2601.2,2600.9,7.45637804]
[1751592303559,41.5686,2601.3,2601.1,0.76864]
[1751592303759,42.68098669,2601.3,2601.2,5.93668629]
[1751592304067,44.06988669,2601.3,2601.2,5.93668629]
[1751592304267,44.06988669,2601.3,2601.2,7.10849347]
[1751592304461,44.06988669,2601.3,2601.2,1.69342346]
[1751592305159,44.06988669,2601.3,2601.2,2.04372519]
[1751592305962,45.42968669,2601.3,2601.2,2.04372519]
[1751592306162,45.42968669,2601.3,2601.2,2.04423379]
[1751592306862,44.04078669,2601.3,2601.2,7.4593038]
[1751592307063,3.00557525,2604.6,2601.2,17.87437381]
[1751592307359,1.92028,2602.9,2602.5,5.41507001]
[1751592307566,0.7682,2602.6,2602.5,5.41507001]
[1751592307756,5.12763,2603.6,2602.5,2.04995894]
[1751592307955,0.76802,2603.2,2603.1,5.41507001]
[1751592308267,1.88042669,2603.2,2603.1,2.05027799]
[1751592308562,42.0992,2603.5,2603.1,2.05027799]
[1751592308764,43.21160669,2603.5,2603.4,5.41507001]
[1751592308961,41.56793,2603.5,2603.4,7.465348]
[1751592309268,42.68033669,2603.5,2603.4,7.45594294]
[1751592309564,42.68033669,2603.5,2603.4,2.66095546]
[1751592309955,42.68033669,2603.5,2603.4,1.52584578]
[1751592309956,0.76793,2603.5,2603.4,1.52584578]
[1751592310157,1.88033669,2603.5,2603.4,0.73412578]
[1751592310360,1.88033669,2603.5,2603.2,1.1576474]
[1751592310361,45.8,2603.5,2603.2,1.1576474]
[1751592310561,0.76808,2603.0,2602.8,3.04046624]
[1751592310855,3.28485,2602.9,2602.4,15.0824392]
[1751592311054,0.76823,2602.5,2602.4,15.03594441]
[1751592311253,3.2078,2602.7,2602.4,2.58666441]
[1751592311461,0.76838,2602.0,2601.9,3.2078]
[1751592312067,41.56838,2602.0,2601.9,3.2078]
[1751592312268,0.76852,2601.5,2601.4,5.2079]
[1751592312459,0.76852,2601.5,2601.4,4.569]
[1751592312960,0.76852,2601.5,2601.4,3.2078]
[1751592314067,3.2078,2601.6,2601.1,3.2078]
[1751592314361,0.76849,2601.6,2601.5,1.1322747]
[1751592314569,2.12479,2601.6,2601.5,1.1322747]
[1751592314863,1.3563,2601.6,2601.1,11.268]
[1751592315065,0.76861,2601.2,2601.1,11.268]
[1751592318366,0.76864,2601.1,2601.0,12.6272]
[1751592318569,0.76864,2601.1,2601.0,1.3592]
[1751592318767,0.76864,2601.1,2601.0,12.6272]
[1751592318964,0.76864,2601.1,2601.0,1.3592]
[1751592319166,0.76864,2601.1,2601.0,12.6272]
[1751592319370,0.76864,2601.1,2601.0,1.3592]
[1751592319571,0.76864,2601.1,2601.0,12.6272]
[1751592320557,0.76864,2601.1,2601.0,11.268]
[1751592321164,0.76864,2601.1,2601.0,12.5379]
[1751592322366,0.76864,2601.1,2601.0,12.88287661]
[1751592325276,0.76867,2601.0,2600.9,55.351]
[1751592325471,0.76867,2601.0,2600.9,66.619]
[1751592325670,0.76867,2601.0,2600.9,55.351]
[1751592326075,0.76867,2601.0,2600.9,66.619]
[1751592326771,0.7687,2600.9,2600.8,43.1080726]
[1751592326972,0.7687,2600.9,2600.8,7.5977726]
[1751592327174,0.7687,2600.9,2600.8,18.8657726]
[1751592327679,0.7687,2600.9,2600.8,7.5977726]
[1751592327875,0.7687,2600.9,2600.8,6.2328726]
[1751592328078,0.7687,2600.9,2600.6,3.781263]
[1751592328079,0.76876,2600.7,2600.6,3.0250726]
[1751592328281,0.76891,2600.2,2600.1,8.54700986]
[1751592328575,0.76891,2600.2,2600.1,3.2078]
[1751592328878,1.92176,2600.9,2600.2,0.76891]
[1751592329079,0.7687,2600.9,2600.8,1.13747158]
[1751592329579,0.76882,2600.5,2600.4,3.2078]
[1751592329779,0.76881,2600.6,2600.4,3.97665]
[1751592330176,0.76881,2600.6,2600.5,0.76882]
[1751592330378,0.76881,2600.6,2600.4,3.97664]
[1751592330681,0.76881,2600.6,2600.5,2.27549951]
[1751592331178,40.8,2600.9,2600.5,2.27607897]
[1751592331372,0.76879,2600.6,2600.5,2.27607897]
[1751592331576,0.76882,2600.5,2600.4,2.27607897]
[1751592331778,0.76888,2600.3,2600.2,2.27607897]
[1751592334185,0.76888,2600.3,2600.1,17.52181897]
[1751592334576,0.76888,2600.3,2600.1,18.80631897]
[1751592335078,0.76891,2600.2,2600.1,18.80631897]
[1751592335479,0.76891,2600.2,2600.1,18.03737897]
[1751592335681,0.76891,2600.2,2600.1,18.80631897]
[1751592335984,0.76891,2600.2,2600.1,15.59851897]
[1751592336184,0.7689,2600.3,2600.1,18.80631897]
[1751592336381,0.76891,2600.2,2600.1,18.03737897]
[1751592336578,0.76891,2600.2,2600.1,5.48387897]
[1751592337085,0.76891,2600.2,2600.1,3.2078]
[1751592337287,0.76891,2600.2,2600.1,3.97674]
[1751592338088,0.76891,2600.2,2600.1,6.25281897]
[1751592338288,0.76891,2600.2,2600.1,3.97674]
[1751592338486,1.92198,2600.6,2600.1,3.97674]
[1751592338786,1.3687,2600.5,2600.1,3.97674]
[1751592339182,0.76891,2600.2,2600.1,6.25281897]
[1751592339385,1.3687,2600.5,2600.1,6.25281897]
[1751592340183,0.76888,2600.3,2600.2,2.27607897]
[1751592340688,0.76887,2600.4,2600.2,3.04496897]
[1751592340886,0.76887,2600.4,2600.3,5.41254896]
[1751592341091,0.76887,2600.4,2600.3,7.68862793]
[1751592341687,0.76887,2600.4,2600.3,5.41254896]
[1751592343089,0.76887,2600.4,2600.3,8.44623265]
[1751592345286,0.76888,2600.3,2600.2,3.03368369]
[1751592345491,0.76888,2600.3,2600.0,3.781263]
[1751592345492,3.26457,2600.3,2600.0,3.04763088]
[1751592345795,3.97674,2600.1,2600.0,3.04763088]
[1751592346194,0.76908,2599.6,2599.5,3.781263]
[1751592346688,0.76908,2599.6,2599.4,13.17074196]
[1751592347087,42.72253,2599.9,2599.4,13.17075196]
[1751592347283,0.76907,2599.7,2599.5,0.76911]
[1751592347586,0.76908,2599.6,2599.5,0.76911]
[1751592347782,42.1786,2599.9,2599.5,0.76911]
[1751592347983,0.76907,2599.7,2599.5,2.16901]
[1751592348491,40.8,2599.9,2599.5,1.3999]
[1751592348692,40.8,2599.9,2599.7,5.41254896]
[1751592348991,0.76903,2599.8,2599.7,5.41254896]
[1751592350893,0.76905,2599.7,2599.6,0.76907]
[1751592351699,40.8,2599.9,2599.5,7.58153896]
[1751592351700,0.76908,2599.6,2599.5,7.58153896]
[1751592351996,0.76908,2599.6,2599.5,5.41254896]
[1751592352895,0.76911,2599.5,2599.4,6.989063]
[1751592353094,0.76911,2599.5,2599.4,3.2078]
[1751592353394,0.76911,2599.5,2599.3,17.35769896]
[1751592354398,0.76914,2599.4,2599.3,16.58854896]
[1751592355496,0.76912,2599.5,2599.3,16.58854896]
[1751592355690,0.76912,2599.5,2599.4,0.76914]
[1751592356099,3.2078,2599.8,2599.5,0.76911]
[1751592356293,0.76908,2599.7,2599.5,0.76911]
[1751592356499,3.2078,2599.8,2599.5,0.76911]
[1751592356500,0.76908,2599.6,2599.5,2.07901]
[1751592360101,0.76911,2599.5,2599.4,4.550383]
[1751592360306,0.76911,2599.5,2599.4,3.781263]
[1751592360601,0.76914,2599.4,2599.3,13.17077196]
[1751592360798,0.76913,2599.5,2599.4,0.76913]
[1751592361300,0.76914,2599.4,2599.3,13.17077196]
[1751592362398,0.76914,2599.5,2599.3,13.17077196]
[1751592362603,0.76914,2599.5,2599.4,0.76914]
[1751592362803,0.76914,2599.4,2599.3,9.19381196]
[1751592363004,0.76914,2599.4,2599.3,5.41254896]
[1751592363701,0.7692,2599.2,2599.1,11.8683]
[1751592363896,0.7692,2599.2,2599.1,16.45449971]
[1751592364098,0.7692,2599.2,2599.1,15.68526971]
[1751592364498,0.7692,2599.2,2599.1,14.99596971]
[1751592364901,0.7692,2599.2,2599.1,3.81696971]
[1751592365997,0.76929,2598.9,2598.8,5.33920986]
[1751592366202,3.97709,2598.9,2598.8,5.33920986]
[1751592366402,0.76938,2598.6,2598.5,5.33920986]
[1751592366907,0.76941,2598.5,2598.4,5.33920986]
[1751592367106,0.76944,2598.4,2598.3,3.2078]
[1751592368404,0.76944,2598.4,2598.3,6.25997954]
[1751592368707,0.76944,2598.4,2598.3,3.05217954]
[1751592369405,0.6872,2598.5,2598.3,3.05217954]
[1751592369605,44.77718,2598.6,2598.4,0.76943]
[1751592370207,44.0078,2598.6,2598.5,2.28726233]
[1751592370609,44.0078,2598.6,2598.5,3.05667233]
[1751592371109,44.0078,2598.6,2598.5,2.28726233]
[1751592371303,44.77718,2598.6,2598.5,2.28726233]
[1751592371803,44.0078,2598.6,2598.5,3.05667233]
[1751592372003,0.76934,2598.8,2598.6,0.76937]
[1751592372200,0.76934,2598.8,2598.6,3.05635537]
[1751592372611,40.8,2598.7,2598.6,3.05635537]
[1751592372806,0.76935,2598.7,2598.6,2.28698537]
[1751592373403,43.54715,2598.7,2598.6,2.28698537]
[1751592373909,0.76938,2598.6,2598.5,2.28698537]
[1751592374109,5.36158,2598.6,2598.5,2.28698537]
[1751592377812,2.15378,2598.6,2598.5,2.28698537]
[1751592378113,5.36158,2598.6,2598.5,2.28698537]
[1751592379915,2.15378,2598.6,2598.5,2.28698537]
[1751592380705,0.76941,2598.5,2598.4,2.28698537]
[1751592380909,2.04521,2598.5,2598.4,2.28698537]
[1751592382317,42.84521,2598.5,2598.4,2.28698537]
[1751592384218,0.76947,2598.3,2598.2,3.82167954]
[1751592384516,77.32042,2598.5,2598.3,0.76945]
[1751592385018,0.76947,2598.3,2598.2,3.05217954]
[1751592385619,76.532,2598.5,2598.2,8.4647285]
[1751592385818,77.30143,2598.5,2598.2,8.4647285]
[1751592386316,77.30143,2598.5,2598.3,0.76945]
[1751592387017,40.8,2598.5,2598.4,0.76944]
[1751592387318,0.76938,2598.6,2598.5,0.76939]
[1751592387518,0.76938,2598.6,2598.4,0.76942]
[1751592387718,41.56938,2598.6,2598.4,2.17222]
[1751592388322,41.56938,2598.6,2598.4,5.22439954]
[1751592388520,0.76941,2598.5,2598.4,5.22439954]
[1751592390021,0.76941,2598.5,2598.4,2.17222]
[1751592390217,0.76941,2598.5,2598.4,5.22439954]
[1751592390419,0.76941,2598.5,2598.4,4.45497954]
[1751592390619,0.76941,2598.5,2598.4,1.4028]
[1751592390818,0.76941,2598.5,2598.4,2.17224]
[1751592391021,41.5694,2598.6,2598.5,0.76941]
[1751592391221,41.5694,2598.6,2598.5,5.17127098]
[1751592391425,41.5694,2598.6,2598.5,4.40186098]
[1751592391624,41.5694,2598.6,2598.5,5.17127098]
[1751592392026,41.5694,2598.6,2598.5,4.40186098]
[1751592392227,41.5694,2598.6,2598.5,1.3455]
[1751592392824,41.5694,2598.6,2598.5,7.52745896]
[1751592394039,40.8,2598.6,2598.5,7.52745896]
[1751592394226,41.56938,2598.6,2598.5,7.52745896]
[1751592395231,41.56938,2598.6,2598.5,11.33950499]
[1751592395732,41.56938,2598.6,2598.5,8.53236923]
[1751592396229,41.56938,2598.6,2598.5,4.7203232]
[1751592399633,40.8,2598.6,2598.5,4.7203232]
[1751592399832,40.8,2598.6,2598.5,8.55515784]
[1751592400032,40.8,2598.6,2598.5,4.7203232]
[1751592400332,41.56938,2598.6,2598.5,4.7203232]
[1751592401833,41.56938,2598.6,2598.5,8.55393692]
[1751592403939,41.56938,2598.6,2598.5,3.83361372]
[1751592404134,0.76941,2598.5,2598.4,3.83361372]
[1751592405437,2.17311,2598.5,2598.4,3.83361372]
[1751592406033,0.76944,2598.4,2598.3,3.83361372]
[1751592407538,0.76947,2598.3,2598.2,6.43902692]
[1751592407938,0.76947,2598.3,2598.2,2.6054132]
[1751592408237,0.76947,2598.3,2598.2,6.4390247]
[1751592410034,3.97727,2598.3,2598.2,3.8336115]
[1751592410232,0.7695,2598.2,2598.1,3.8336115]
[1751592410435,1.4701,2598.2,2598.1,3.8336115]
[1751592410632,2.8237,2598.2,2598.1,3.8336115]
[1751592415942,0.76953,2598.1,2598.0,3.8336115]
[1751592416142,0.76956,2598.0,2597.9,3.8336115]
[1751592416342,0.76959,2597.9,2597.8,6.4390247]
[1751592417036,0.76959,2597.9,2597.8,2.6054132]
[1751592417439,0.76959,2597.9,2597.8,3.3750332]
[1751592418245,0.76959,2597.9,2597.8,2.6054132]
[1751592419941,0.76965,2597.7,2597.6,3.8336115]
[1751592420147,0.76968,2597.6,2597.5,3.8336115]
[1751592420343,0.76971,2597.5,2597.4,3.8336115]
[1751592420641,41.56971,2597.5,2597.4,3.8336115]
[1751592421342,41.56971,2597.5,2597.2,3.2078]
[1751592421343,0.76977,2597.3,2597.2,7.0414115]
[1751592421742,0.76977,2597.3,2597.2,3.2078]
[1751592423248,2.05616,2597.4,2597.2,5.8132132]
[1751592423545,2.05616,2597.4,2597.3,3.06046566]
[1751592425448,0.76977,2597.3,2597.2,8.87367886]
[1751592425649,2.05616,2597.4,2597.2,9.64346886]
[1751592426149,0.76977,2597.3,2597.2,8.87367886]
[1751592426548,0.76977,2597.3,2597.2,9.64346886]
[1751592426748,0.76977,2597.3,2597.2,6.26826566]
[1751592427247,2.05616,2597.4,2597.2,7.03805566]
[1751592427945,0.76977,2597.3,2597.2,6.26826566]
[1751592428149,2.05616,2597.4,2597.2,7.03803566]
[1751592428449,0.76976,2597.4,2597.2,8.87367886]
[1751592428749,0.76976,2597.4,2597.3,0.76977]
[1751592429549,0.76976,2597.4,2597.2,9.64344886]
[1751592429749,0.76976,2597.4,2597.2,6.43564886]
[1751592430245,40.8,2597.5,2597.2,5.66587886]
[1751592430447,40.8,2597.5,2597.4,3.3751532]
[1751592430750,0.76958,2598.0,2597.5,1.92427]
[1751592430953,0.76958,2598.0,2597.9,4.89820659]
[1751592431154,41.56958,2598.0,2597.9,4.89820659]
[1751592431648,41.56958,2598.0,2597.9,3.3750032]
[1751592432050,41.56958,2598.0,2597.9,2.6054132]
[1751592432548,40.8,2598.0,2597.9,3.3750032]
[1751592432943,2.6054132,2598.8,2598.2,0.76949]
[1751592432944,3.30895,2598.8,2598.2,0.76949]
[1751592433151,0.6832,2598.6,2598.5,1.14628036]
[1751592433354,0.76941,2598.5,2598.4,1.52837382]
[1751592433945,41.56941,2598.5,2598.4,1.52837382]
[1751592434150,42.95501,2598.5,2598.4,1.52837382]
[1751592434355,78.39901,2598.5,2598.4,1.52837382]
[1751592435657,81.0044232,2598.5,2598.4,1.52837382]
[1751592435860,0.76944,2598.4,2598.3,0.557286]
[1751592436055,3.21726,2598.4,2597.9,3.05705786]
[1751592436255,0.76956,2598.0,2597.9,3.05705786]
[1751592436454,41.56956,2598.0,2597.9,3.05705786]
[1751592437049,0.76959,2597.9,2597.8,3.05705786]
[1751592437257,1.42709,2597.9,2597.8,3.05705786]
[1751592437559,41.5404032,2597.9,2597.8,3.05705786]
[1751592437748,0.76965,2597.7,2597.6,3.05705786]
[1751592438462,0.76971,2597.5,2597.4,7.0414115]
[1751592438655,0.7697,2597.6,2597.4,3.97754]
[1751592439456,0.7697,2597.6,2597.4,3.2078]
[1751592439859,0.76971,2597.5,2597.4,3.2078]
[1751592443261,2.08271,2597.5,2597.4,3.2078]
[1751592444858,0.76977,2597.3,2597.2,3.8336115]
[1751592445259,0.76977,2597.3,2597.2,4.6034015]
[1751592446058,0.76975,2597.4,2597.2,4.6034015]
[1751592446266,0.76971,2597.5,2597.3,2.6054132]
[1751592446467,0.76967,2597.7,2597.6,0.76968]
[1751592446668,0.76967,2597.7,2597.6,3.3750932]
[1751592447969,36.7564,2597.9,2597.6,3.3750932]
[1751592447970,0.76963,2597.8,2597.7,0.76964]
[1751592448167,0.76963,2597.8,2597.7,3.83937648]
[1751592448372,0.76961,2597.9,2597.8,0.76962]
[1751592448572,0.76961,2597.9,2597.8,3.3750332]
[1751592449070,0.76961,2597.9,2597.8,2.6054132]
[1751592450675,0.76962,2597.8,2597.7,2.6807]
[1751592451870,0.76962,2597.8,2597.7,1.3315]
[1751592452075,76.189,2598.0,2597.6,7.8110715]
[1751592452277,76.95856,2598.0,2597.9,3.06940137]
[1751592453572,0.76963,2597.8,2597.6,7.8110715]
[1751592453777,1.92422,2597.6,2597.1,3.8336115]
[1751592453973,1.92422,2597.6,2597.0,3.2078]
[1751592453974,0.76979,2597.2,2597.0,3.2078]
[1751592454276,0.7698,2597.2,2597.0,3.2078]
[1751592454476,0.7698,2597.2,2597.0,5.32525]
[1751592454877,0.76982,2597.1,2597.0,4.5554]
[1751592456069,3.3752332,2597.1,2597.0,3.2078]
[1751592458876,0.76982,2597.1,2597.0,3.2078]
[1751592460280,0.76988,2596.9,2596.8,3.8336115]
[1751592460481,0.76992,2596.8,2596.6,7.0414115]
[1751592460980,0.76994,2596.7,2596.6,7.0414115]
[1751592461378,0.76993,2596.8,2596.6,7.8113815]
[1751592462183,0.76994,2596.7,2596.6,7.8113815]
[1751592462484,0.76994,2596.7,2596.6,7.0414115]
[1751592462681,40.8,2597.0,2596.6,7.0414115]
[1751592462982,0.76994,2596.7,2596.6,3.2078]
[1751592464278,40.8,2597.0,2596.9,0.76988]
[1751592464484,0.76984,2597.1,2596.9,3.3752832]
[1751592464684,0.76984,2597.1,2597.0,3.06733845]
[1751592464884,41.56984,2597.1,2597.0,3.06733845]
[1751592466283,41.56984,2597.1,2597.0,3.83718845]
[1751592466589,40.8,2597.1,2597.0,3.83718845]
[1751592466785,40.8,2597.1,2597.0,6.52268845]
[1751592467386,41.56982,2597.1,2597.0,6.52268845]
[1751592467583,41.56982,2597.1,2597.0,5.75283845]
[1751592468589,41.56982,2597.1,2597.0,3.06733845]
[1751592469385,40.8,2597.1,2597.0,3.83718845]
[1751592471490,41.56982,2597.1,2597.0,3.83718845]
[1751592472088,40.8,2597.1,2597.0,3.83718845]
[1751592473089,40.8,2597.1,2597.0,5.88348845]
[1751592473492,41.56982,2597.1,2597.0,5.88348845]
[1751592475094,41.56982,2597.1,2597.0,9.09128845]
[1751592475292,41.56982,2597.1,2597.0,7.73448845]
[1751592475594,41.56982,2597.1,2597.0,6.27513845]
[1751592475993,0.76985,2597.0,2596.9,3.06733845]
[1751592477998,40.8,2597.1,2596.9,3.83721845]
[1751592477999,41.56985,2597.1,2596.9,3.83721845]
[1751592478198,41.56985,2597.1,2597.0,3.06733845]
[1751592478400,76.94785,2597.1,2597.0,3.83718845]
[1751592478603,76.94785,2597.1,2597.0,3.06733845]
[1751592479300,76.94785,2597.1,2597.0,3.83718845]
[1751592479494,76.178,2597.1,2597.0,3.83718845]
[1751592479989,76.94782,2597.1,2597.0,3.83718845]
[1751592480399,76.94782,2597.1,2597.0,0.76985]
[1751592480999,41.56982,2597.1,2597.0,0.76985]
[1751592481200,76.94382,2597.1,2597.0,0.76985]
[1751592481403,76.94382,2597.1,2596.8,7.0414115]
[1751592481404,0.76985,2597.0,2596.8,7.0414115]
[1751592481598,0.76985,2597.0,2596.8,7.8113015]
[1751592481798,36.14388,2596.9,2596.8,7.0414115]
[1751592481998,36.78918,2596.9,2596.8,3.2078]
[1751592482398,36.78918,2596.9,2596.7,4.6035515]
[1751592483297,0.76991,2596.8,2596.7,4.6035515]
[1751592483598,0.76991,2596.8,2596.7,0.76994]
[1751592486398,36.0193,2596.9,2596.8,0.76991]
[1751592486399,0.6453,2596.9,2596.8,0.76991]
[1751592486599,41.56982,2597.1,2597.0,0.76985]
[1751592486795,76.94382,2597.1,2597.0,3.3752632]
[1751592487199,76.94382,2597.1,2597.0,7.22211917]
[1751592487800,0.6377,2597.4,2597.2,0.76979]
[1751592488102,0.76968,2597.6,2597.3,6.28473573]
[1751592488298,0.76966,2597.7,2597.5,0.76969]
[1751592488608,0.76967,2597.7,2597.5,0.76971]
[1751592488901,1.45603,2597.8,2597.4,4.54385597]
[1751592489100,0.6864,2597.8,2597.7,3.07524313]
[1751592489301,1.45602,2597.8,2597.7,3.07524313]
[1751592490198,1.45602,2597.8,2597.6,3.84490313]
[1751592490399,0.6864,2597.8,2597.7,0.76965]
[1751592490804,0.6864,2597.8,2597.7,3.84489313]
[1751592491007,1.45602,2597.8,2597.7,3.07524313]
[1751592491205,1.45602,2597.8,2597.7,0.76965]
[1751592491206,0.6864,2597.8,2597.7,0.76965]
[1751592493108,0.6864,2597.8,2597.7,3.83673749]
[1751592493910,0.6864,2597.8,2597.7,3.06708749]
[1751592493911,1.45602,2597.8,2597.7,3.06708749]
[1751592494504,0.6864,2597.8,2597.7,3.83673749]
[1751592495609,1.45602,2597.8,2597.7,3.06708749]
[1751592497607,0.76965,2597.7,2597.6,6.27488749]
[1751592498109,0.76965,2597.7,2597.6,7.04456749]
[1751592498810,0.76965,2597.7,2597.6,3.83676749]
[1751592500012,0.76965,2597.7,2597.6,3.06708749]
[1751592501816,0.76965,2597.7,2597.6,3.83676749]
[1751592502518,40.8,2597.9,2597.6,3.06708749]
[1751592502709,0.76962,2597.8,2597.7,6.27488749]
[1751592502915,0.76962,2597.8,2597.7,3.06708749]
[1751592503115,0.76965,2597.7,2597.6,3.06708749]
[1751592504116,0.76968,2597.6,2597.5,3.06708749]
[1751592504314,0.76971,2597.5,2597.4,6.27488749]
[1751592504515,1.42251,2597.5,2597.4,6.27488749]
[1751592504715,2.76181,2597.5,2597.4,6.27488749]
[1751592504918,2.76181,2597.5,2597.4,3.2078]
[1751592505314,0.76974,2597.4,2597.3,3.06708749]
[1751592505516,0.76979,2597.2,2597.1,3.06708749]
[1751592505718,38.7372032,2597.2,2597.1,3.06708749]
[1751592506014,0.76982,2597.1,2597.0,3.2078]
[1751592506213,2.75212,2597.1,2597.0,3.2078]
[1751592506416,0.76988,2596.9,2596.8,3.06708749]
[1751592506720,3.3752932,2596.9,2596.8,3.06708749]
[1751592507221,4.7145932,2596.9,2596.8,3.06708749]
[1751592508018,45.5145932,2596.9,2596.8,3.06708749]
[1751592508215,42.1393,2596.9,2596.8,3.06708749]
[1751592508420,76.93489,2596.9,2596.8,3.06708749]
[1751592508721,41.56989,2596.9,2596.8,3.06708749]
[1751592511618,0.76991,2596.8,2596.7,3.06708749]
[1751592514826,0.76994,2596.7,2596.6,3.2078]
[1751592517634,40.8,2596.9,2596.6,3.2078]
[1751592517833,41.56988,2596.9,2596.8,3.06496778]
[1751592518735,0.76991,2596.8,2596.7,3.8887132]
[1751592520037,0.76991,2596.8,2596.7,1.2833]
[1751592522634,0.76991,2596.8,2596.7,2.05324]
[1751592523339,0.76991,2596.8,2596.7,1.2833]
[1751592523934,0.76991,2596.8,2596.7,0.6455]
[1751592526436,0.76994,2596.7,2596.6,3.2078]
[1751592526741,1.46034,2596.7,2596.6,3.2078]
[1751592528439,4.0657532,2596.7,2596.6,3.2078]
[1751592528630,4.0657532,2596.7,2596.6,6.27607497]
[1751592528832,4.0657532,2596.7,2596.6,3.06827497]
[1751592529045,4.0657532,2596.7,2596.1,3.2078]
[1751592529046,4.6602132,2596.7,2596.4,3.06827497]
[1751592529239,3.3754132,2596.5,2596.4,3.06827497]
[1751592529542,3.3754132,2596.5,2596.3,3.06827497]
[1751592529543,0.77003,2596.4,2596.3,3.06827497]
[1751592529838,37.49843,2596.4,2596.3,3.06827497]
[1751592530343,37.49843,2596.4,2596.3,0.06827497]
[1751592532741,0.77012,2596.1,2596.0,3.2078]
[1751592533043,3.3755332,2596.1,2596.0,3.2078]
[1751592533640,0.77012,2596.1,2596.0,3.2078]
[1751592534637,0.77012,2596.2,2596.0,3.2078]
[1751592534842,0.6591,2596.3,2596.1,0.77011]
[1751592535047,1.42918,2596.3,2596.1,4.6908232]
[1751592535245,0.77009,2596.2,2596.1,4.6908232]
[1751592535840,35.366,2596.5,2596.1,3.9207132]
[1751592536041,0.77007,2596.3,2596.2,0.77008]
[1751592536339,0.77009,2596.2,2596.1,4.6908132]
[1751592536542,0.77009,2596.3,2596.1,3.9207132]
[1751592536846,0.77005,2596.4,2596.3,0.77005]
[1751592537041,0.77,2596.5,2596.4,0.77001]
[1751592537644,1.44369,2596.6,2596.5,0.77]
[1751592537845,0.77,2596.5,2596.4,2.08842]
[1751592538843,0.77,2596.5,2596.4,1.3184]
[1751592540046,0.77,2596.5,2596.4,2.08843]
[1751592540248,1.44369,2596.6,2596.5,0.77]
[1751592540442,1.44369,2596.6,2596.5,3.84034764]
[1751592542049,1.44369,2596.6,2596.5,3.07034764]
[1751592542644,0.77,2596.5,2596.4,3.07034764]
[1751592543748,0.77006,2596.3,2596.2,3.07034764]